bitfinex-derivatives/quotes_BTCF0:USTF0_20250928
["timestamp","ask_amount","ask_price","bid_price","bid_amount"]
[1759099828613,0.29310888,112000.0,111990.0,1.67307419]
[1759099828813,0.29310888,112000.0,111990.0,1.4146597]
[1759099829117,0.29310888,112000.0,111990.0,1.67307419]
[1759099829613,1.06236507,112000.0,111990.0,0.002]
[1759099830213,1.42316507,112000.0,111990.0,0.002]
[1759099831208,0.90633609,112000.0,111990.0,0.002]
[1759099831409,1.42316507,112000.0,111990.0,0.002]
[1759099835621,0.90633609,112000.0,111990.0,0.002]
[1759099836013,1.42316507,112000.0,111990.0,0.002]
[1759099837522,0.90633609,112000.0,111990.0,0.002]
[1759099837722,1.42316507,112000.0,111990.0,0.002]
[1759099839425,1.02316507,112000.0,111990.0,0.002]
[1759099844022,1.68157956,112000.0,111990.0,0.002]
[1759099844222,1.42316507,112000.0,111990.0,0.002]
[1759099844624,1.68157956,112000.0,111990.0,0.002]
[1759099844823,1.42316507,112000.0,111990.0,0.002]
[1759099847130,0.99789609,112000.0,111990.0,0.0912598]
[1759099847322,1.51472507,112000.0,111990.0,0.0912598]
[1759099847527,1.51468507,112000.0,111990.0,0.0912598]
[1759099848541,0.66236507,112000.0,111990.0,0.0912598]
[1759099848737,1.87544507,112000.0,111990.0,0.0912598]
[1759099848941,0.40395058,112000.0,111990.0,0.34967429]
[1759099849335,0.66236507,112000.0,111990.0,0.0912598]
[1759099855034,0.66236507,112000.0,111990.0,0.4520598]
[1759099855241,0.31469888,112000.0,111990.0,0.71047429]
[1759099855545,0.66236517,112000.0,111990.0,0.71047429]
[1759099855848,0.31469888,112000.0,111990.0,0.71047429]
[1759099859938,0.40395068,112000.0,111990.0,0.71047429]
[1759099860137,0.40395068,112000.0,111990.0,0.4520598]
[1759099860343,0.40395068,112000.0,111990.0,0.71047429]
[1759099862249,0.40395068,112000.0,111990.0,0.4520598]
[1759099862449,0.40395068,112000.0,111990.0,0.71047429]
[1759099863046,0.40395068,112000.0,111990.0,0.4520598]
[1759099863251,0.40395068,112000.0,111990.0,0.71047429]
[1759099866352,0.40393456,112000.0,111990.0,0.3628]
[1759099866546,0.40393456,112000.0,111990.0,1.3038998]
[1759099866748,0.03469439,112000.0,111990.0,1.96229817]
[1759099870154,0.05705439,112000.0,111990.0,1.7037798]
[1759099870453,0.05705439,112000.0,111990.0,1.96217817]
[1759099870656,0.05705439,112000.0,111990.0,1.7037798]
[1759099870855,0.05705439,112000.0,111990.0,1.96217817]
[1759099871152,0.14630619,112000.0,111990.0,1.11045817]
[1759099871355,0.14630619,112000.0,111990.0,1.96217817]
[1759099872156,0.05705439,112000.0,111990.0,1.96217817]
[1759099872957,0.05705439,112000.0,111990.0,1.11045817]
[1759099873153,0.05705439,112000.0,111990.0,1.96213817]
[1759099873354,0.05705439,112000.0,111990.0,1.96209817]
[1759099874357,0.05705439,112000.0,111990.0,1.7036998]
[1759099874556,0.05705439,112000.0,111990.0,1.96209817]
[1759099876050,0.03469439,112000.0,111990.0,1.96209817]
[1759099876450,0.03469439,112000.0,111990.0,1.7036998]
[1759099876658,0.03469439,112000.0,111990.0,1.96209817]
[1759099882353,0.03469439,112000.0,111990.0,1.7036998]
[1759099882549,0.03469439,112000.0,111990.0,1.96209817]
[1759099885164,0.03469439,112000.0,111990.0,1.7036998]
[1759099885457,0.03469439,112000.0,111990.0,2.22049654]
[1759099885458,0.02131439,112000.0,111990.0,2.22049654]
[1759099885653,0.04536127,112020.0,112000.0,0.0892504]
[1759099885864,0.04536127,112020.0,112010.0,1.55968227]
[1759099886367,0.04536127,112020.0,112010.0,0.70844227]
[1759099886561,0.06831127,112020.0,112010.0,1.55964227]
[1759099886865,0.06931127,112020.0,112010.0,1.55964227]
[1759099887558,0.04636127,112020.0,112010.0,1.55964227]
[1759099888065,0.04636127,112020.0,112010.0,1.92044227]
[1759099888364,0.01427,112020.0,112010.0,1.92044227]
[1759099888562,0.01427,112020.0,112010.0,1.92036227]
[1759099889159,0.01327,112020.0,112010.0,0.8108439]
[1759099889356,0.04022,112020.0,112010.0,1.92036227]
[1759099889559,0.04022,112020.0,112010.0,1.06924227]
[1759099889757,0.04022,112020.0,112010.0,1.92032227]
[1759099890261,0.04022,112020.0,112010.0,1.06924227]
[1759099890565,0.04022,112020.0,112010.0,1.6618839]
[1759099890765,0.04022,112020.0,112010.0,1.92028227]
[1759099891072,0.04022,112020.0,112010.0,1.06924227]
[1759099891454,0.04022,112020.0,112010.0,1.92024227]
[1759099892263,0.004,112020.0,112010.0,2.57864064]
[1759099892469,0.01706,112020.0,112010.0,2.32024227]
[1759099893261,0.004,112020.0,112010.0,2.57864064]
[1759099894565,0.004,112020.0,112010.0,2.32024227]
[1759099894763,0.004,112020.0,112010.0,2.57864064]
[1759099895867,0.004,112020.0,112010.0,2.57848064]
[1759099897772,0.0252624,112020.0,112010.0,2.57848064]
[1759099898073,0.06652151,112030.0,112020.0,0.0892359]
[1759099898262,0.01327,112030.0,112020.0,0.96683264]
[1759099898462,0.01327,112030.0,112020.0,1.36683264]
[1759099899673,0.04515127,112040.0,112030.0,0.0892279]
[1759099899875,0.04515127,112040.0,112030.0,1.55906627]
[1759099900673,0.06810127,112040.0,112030.0,1.55902627]
[1759099900871,0.04515127,112040.0,112030.0,0.70842627]
[1759099901067,0.04515127,112040.0,112030.0,1.55902627]
[1759099901268,0.06810127,112040.0,112030.0,0.71738064]
[1759099901571,0.04515127,112040.0,112030.0,0.71738064]
[1759099901770,0.04515127,112040.0,112030.0,1.56794064]
[1759099901973,0.05115127,112040.0,112030.0,1.56794064]
[1759099903267,0.05115127,112040.0,112030.0,1.63947141]
[1759099903669,0.05115127,112040.0,112030.0,1.56794064]
[1759099903869,0.05115127,112040.0,112030.0,0.71738064]
[1759099904074,0.07410127,112040.0,112030.0,1.56782064]
[1759099904264,0.05115127,112040.0,112030.0,1.56782064]
[1759099904463,0.05115127,112040.0,112030.0,1.67782064]
[1759099905369,0.05115127,112040.0,112030.0,1.74815231]
[1759099905872,0.01906,112040.0,112030.0,1.74815231]
[1759099906069,0.01906,112040.0,112030.0,2.14815231]
[1759099906666,0.01906,112040.0,112030.0,2.14803231]
[1759099907577,0.01306,112040.0,112030.0,1.29771231]
[1759099907775,0.01806,112040.0,112030.0,2.14795231]
[1759099908476,0.01306,112040.0,112030.0,2.14795231]
[1759099908676,0.01306,112040.0,112030.0,2.15195231]
[1759099910373,0.03420513,112040.0,112030.0,2.15195231]
[1759099911469,0.04515127,112050.0,112040.0,0.08922]
[1759099911670,0.04515127,112050.0,112040.0,0.96681674]
[1759099912075,0.04515127,112050.0,112040.0,0.81841837]
[1759099912683,0.04515127,112050.0,112040.0,0.81941837]
[1759099913882,0.04515127,112050.0,112040.0,1.66937837]
[1759099915476,0.01306,112050.0,112040.0,1.66937837]
[1759099917180,0.03519,112050.0,112040.0,0.81941837]
[1759099917381,0.01306,112050.0,112040.0,1.66921837]
[1759099918482,0.01306,112050.0,112040.0,1.92761674]
[1759099921586,0.01306,112050.0,112040.0,1.66921837]
[1759099922186,0.01306,112050.0,112040.0,1.92761674]
[1759099922990,0.01306,112060.0,112050.0,0.089212]
[1759099923183,0.01306,112060.0,112050.0,0.96680874]
[1759099923585,0.01306,112060.0,112050.0,1.07680874]
[1759099924192,0.01506,112060.0,112050.0,1.07680874]
[1759099924585,0.01506,112060.0,112050.0,1.92632874]
[1759099926181,0.01506,112060.0,112050.0,1.92562678]
[1759099927093,0.002,112060.0,112050.0,2.58367417]
[1759099927302,0.002,112060.0,112050.0,1.73415417]
[1759099927492,0.002,112060.0,112050.0,1.47610678]
[1759099927787,0.01468,112060.0,112050.0,2.32542678]
[1759099928389,0.01468,112060.0,112050.0,1.47610678]
[1759099928589,0.01468,112060.0,112050.0,2.32538678]
[1759099928789,0.01268,112080.0,112050.0,2.67264617]
[1759099929088,0.03481,112080.0,112070.0,0.4499961]
[1759099929291,0.01268,112080.0,112070.0,1.81537088]
[1759099929797,0.01268,112080.0,112070.0,1.92537088]
[1759099930192,0.01468,112080.0,112070.0,1.92537088]
[1759099930698,0.01468,112080.0,112070.0,2.28617088]
[1759099930897,0.02068,112080.0,112070.0,2.28617088]
[1759099931489,0.02068,112080.0,112070.0,1.7700761]
[1759099931690,0.02068,112080.0,112070.0,0.9207961]
[1759099931995,0.02068,112080.0,112070.0,2.35916594]
[1759099933489,0.02068,112080.0,112070.0,1.84307116]
[1759099933788,0.02068,112080.0,112070.0,2.35916594]
[1759099933997,0.01568,112080.0,112070.0,2.35916594]
[1759099934390,0.01568,112080.0,112070.0,2.35912594]
[1759099934592,0.01568,112080.0,112070.0,0.99387116]
[1759099934808,0.01568,112080.0,112070.0,2.10099855]
[1759099934809,0.03901,112080.0,112070.0,2.10099855]
[1759099935096,0.03901,112080.0,112070.0,2.35904594]
[1759099935890,0.03901,112080.0,112070.0,1.50996594]
[1759099936091,0.03901,112080.0,112070.0,2.35904594]
[1759099937497,0.03901,112080.0,112070.0,1.84295116]
[1759099937806,0.03901,112080.0,112070.0,2.35904594]
[1759099940592,0.80717549,112080.0,112070.0,1.769796]
[1759099940801,0.80717549,112080.0,112070.0,1.17884339]
[1759099941102,0.5491281,112080.0,112070.0,1.17884339]
[1759099941296,0.5491281,112080.0,112070.0,0.8316]
[1759099941500,0.80717549,112080.0,112070.0,1.82864739]
[1759099941702,0.80717549,112080.0,112070.0,1.91784339]
[1759099941999,0.5491281,112080.0,112070.0,1.91784339]
[1759099942200,0.5491281,112080.0,112070.0,1.659796]
[1759099942394,0.80717549,112080.0,112070.0,0.810796]
[1759099942602,0.80717549,112080.0,112070.0,1.91784339]
[1759099942801,0.5491281,112080.0,112070.0,0.810796]
[1759099943104,0.5491281,112080.0,112070.0,1.91784339]
[1759099943303,0.80717549,112080.0,112070.0,1.91784339]
[1759099943896,0.5491281,112080.0,112070.0,1.91784339]
[1759099944098,0.80717549,112080.0,112070.0,1.06884339]
[1759099944297,0.80717549,112080.0,112070.0,1.91780339]
[1759099944801,0.80717549,112080.0,112070.0,1.57056]
[1759099944997,0.80717549,112080.0,112070.0,1.82860739]
[1759099945198,0.80717549,112080.0,112070.0,0.97964739]
[1759099945400,0.80717549,112080.0,112070.0,1.82860739]
[1759099945605,0.102286,112070.0,112060.0,0.3608]
[1759099945801,0.1238439,112060.0,112050.0,0.4500119]
[1759099946003,0.144774,112060.0,112050.0,0.70805929]
[1759099946204,0.144774,112060.0,112050.0,1.66701929]
[1759099946599,0.144774,112060.0,112050.0,1.4089719]
[1759099946804,0.144774,112060.0,112050.0,1.66701929]
[1759099946996,0.40282139,112060.0,112050.0,0.25804739]
[1759099947201,0.80282139,112060.0,112050.0,1.10700739]
[1759099947803,0.544774,112060.0,112050.0,1.10700739]
[1759099948002,0.80282139,112060.0,112050.0,1.10700739]
[1759099948706,0.80282139,112060.0,112050.0,1.10900739]
[1759099949509,0.80282139,112060.0,112050.0,0.002]
[1759099949814,1.43073605,112060.0,112050.0,0.002]
[1759099950301,1.42166878,112060.0,112050.0,0.002]
[1759099950495,1.16362139,112060.0,112050.0,0.26004739]
[1759099950701,0.40282139,112060.0,112050.0,0.26004739]
[1759099951501,0.144774,112060.0,112050.0,0.002]
[1759099951702,0.144774,112060.0,112050.0,0.26004739]
[1759099952207,0.40282139,112060.0,112050.0,0.26004739]
[1759099952409,0.40282139,112060.0,112050.0,0.002]
[1759099952703,0.144774,112060.0,112050.0,0.0912119]
[1759099952908,0.144774,112060.0,112050.0,0.34925929]
[1759099953910,0.40282139,112060.0,112050.0,0.26004739]
[1759099954108,0.40282139,112060.0,112050.0,1.10904739]
[1759099955599,0.40282139,112060.0,112050.0,1.19825929]
[1759099956005,0.144774,112060.0,112050.0,1.19825929]
[1759099956303,0.40282139,112060.0,112050.0,0.26004739]
[1759099956500,0.80282139,112060.0,112050.0,0.002]
[1759099956708,0.80282139,112060.0,112050.0,1.10904739]
[1759099956909,0.544774,112060.0,112050.0,1.10904739]
[1759099957108,0.80282139,112060.0,112050.0,1.10904739]
[1759099957504,0.544774,112060.0,112050.0,1.10904739]
[1759099957704,0.80282139,112060.0,112050.0,1.10904739]
[1759099958317,0.80282139,112060.0,112050.0,0.26004739]
[1759099958506,1.42166878,112060.0,112050.0,0.002]
[1759099959510,1.02166878,112060.0,112050.0,0.002]
[1759099960713,1.02166878,112060.0,112050.0,0.26004739]
[1759099960908,0.40282139,112060.0,112050.0,0.26004739]
[1759099961613,0.40282139,112060.0,112050.0,0.34925929]
[1759099962205,0.40282139,112060.0,112050.0,0.002]
[1759099962500,0.52670163,112060.0,112050.0,0.002]
[1759099962711,1.44279641,112060.0,112050.0,0.002]
[1759099964514,2.29183641,112060.0,112050.0,0.002]
[1759099965813,0.1238678,112030.0,112020.0,0.7621158]
[1759099966005,0.38191519,112030.0,112020.0,0.72884739]
[1759099966207,0.38191519,112030.0,112020.0,0.61884739]
[1759099966813,0.40300989,112030.0,112020.0,0.25804739]
[1759099967113,0.1238758,112020.0,112010.0,0.72884739]
[1759099967312,0.1238837,112010.0,112000.0,0.61895672]
[1759099967512,0.1238837,112010.0,112000.0,1.72604411]
[1759099967710,0.1238837,112010.0,112000.0,1.92529581]
[1759099968014,0.1128837,112010.0,112000.0,1.92529581]
[1759099968710,0.1128837,112010.0,112000.0,1.92729581]
[1759099968917,0.1128837,112010.0,112000.0,1.93629581]
[1759099969418,0.1128837,112010.0,112000.0,1.93633581]
[1759099969613,0.1128837,112010.0,112000.0,1.08725581]
[1759099969812,0.1128837,112010.0,112000.0,1.93633581]
[1759099970212,0.1128837,112010.0,112000.0,1.945204]
[1759099970416,0.1128837,112010.0,112000.0,1.096124]
[1759099970621,0.1128837,112010.0,112000.0,1.945204]
[1759099971916,0.03464,112010.0,112000.0,1.945204]
[1759099972619,0.03464,112010.0,112000.0,1.096124]
[1759099972820,0.03464,112010.0,112000.0,1.945204]
[1759099973014,0.03464,112010.0,112000.0,1.82910922]
[1759099973321,0.01309,112010.0,112000.0,1.496124]
[1759099973520,0.1023337,112010.0,112000.0,2.345244]
[1759099975016,0.1023337,112010.0,112000.0,1.496124]
[1759099975215,0.1023337,112010.0,112000.0,2.345284]
[1759099978122,0.01309,112010.0,112000.0,1.82918922]
[1759099978323,0.01309,112010.0,112000.0,2.345284]
[1759099978716,0.01309,112010.0,112000.0,1.496124]
[1759099978921,0.01309,112010.0,112000.0,2.345284]
[1759099980923,0.03594,112010.0,112000.0,2.345284]
[1759099981223,0.38323109,112010.0,112000.0,1.945284]
[1759099981413,0.38323109,112010.0,112000.0,1.68723661]
[1759099981619,0.38323109,112010.0,112000.0,1.67836842]
[1759099981819,0.80440517,112010.0,112000.0,0.73995672]
[1759099982021,0.80440517,112010.0,112000.0,1.56836842]
[1759099982214,0.54635778,112010.0,112000.0,1.82641581]
[1759099983320,0.54635778,112010.0,112000.0,1.83534925]
[1759099984126,0.54635778,112010.0,112000.0,1.82641581]
[1759099985418,0.54635778,112010.0,112000.0,1.83544996]
[1759099986220,0.54635778,112010.0,112000.0,1.57768403]
[1759099986525,0.54635778,112010.0,112000.0,1.31032103]
[1759099986928,0.54635778,112010.0,112000.0,1.56860988]
[1759099988029,0.05711408,112010.0,112000.0,1.56860988]
[1759099989626,0.05711408,112010.0,112000.0,0.71948988]
[1759099989930,0.14635778,112010.0,112000.0,1.56860988]
[1759099990126,0.05711408,112010.0,112000.0,1.56860988]
[1759099991528,0.05711408,112010.0,112000.0,0.71948988]
[1759099991830,0.05711408,112010.0,112000.0,1.56856988]
[1759099994532,0.05711408,112010.0,112000.0,1.56852988]
[1759099994932,0.05711408,112010.0,112000.0,0.71948988]
[1759099995131,0.05711408,112010.0,112000.0,1.56852988]
[1759099997733,0.03426408,112010.0,112000.0,1.96852988]
[1759100000433,0.05740408,112010.0,112000.0,1.71012103]
[1759100000735,0.05740408,112010.0,112000.0,1.96844988]
[1759100001635,0.05740408,112010.0,112000.0,1.96840988]
[1759100002341,0.05740408,112010.0,112000.0,1.11948988]
[1759100002736,0.05740408,112010.0,112000.0,1.96832988]
[1759100003842,0.05740408,112010.0,112000.0,1.11948988]
[1759100004040,0.05740408,112010.0,112000.0,1.96832988]
[1759100004236,0.03623,112010.0,112000.0,1.96832988]
[1759100004740,0.03623,112010.0,112000.0,1.71000103]
[1759100004941,0.03623,112010.0,112000.0,1.96832988]
[1759100008140,0.03623,112010.0,112000.0,1.71000103]
[1759100008342,0.03623,112010.0,112000.0,1.96832988]
[1759100011440,0.03623,112010.0,112000.0,1.71000103]
[1759100011644,0.03623,112010.0,112000.0,1.96832988]
[1759100013245,0.03623,112010.0,112000.0,1.11948988]
[1759100013433,0.03623,112010.0,112000.0,1.96812988]
[1759100014241,0.03623,112010.0,112000.0,0.86116103]
[1759100014546,0.03623,112010.0,112000.0,1.96808988]
[1759100019434,0.03623,112010.0,112000.0,1.56808988]
[1759100024044,0.03623,112010.0,112000.0,0.71948988]
[1759100024250,0.03623,112010.0,112000.0,1.56780988]
[1759100027251,0.03623,112010.0,112000.0,1.56772988]
[1759100029154,0.03623,112010.0,112000.0,0.71948988]
[1759100029355,0.03623,112010.0,112000.0,1.56768988]
[1759100029553,0.03623,112010.0,112000.0,0.71948988]
[1759100029855,0.03623,112010.0,112000.0,1.56760988]
[1759100030242,0.03623,112010.0,112000.0,1.56756988]
[1759100030643,0.1254737,112010.0,112000.0,0.71948988]
[1759100030848,0.14673235,112010.0,112000.0,0.71948988]
[1759100031053,0.54673235,112010.0,112000.0,0.63023818]
[1759100031449,0.54673235,112010.0,112000.0,1.21998933]
[1759100031648,1.18632241,112010.0,112000.0,0.85914933]
[1759100031841,1.18632061,112010.0,112000.0,0.85914933]
[1759100033554,1.18632061,112010.0,112000.0,0.85918933]
[1759100034547,1.18632061,112010.0,112000.0,0.01110933]
[1759100034747,1.18632061,112010.0,112000.0,0.85910933]
[1759100034948,1.18632061,112010.0,112000.0,0.01110933]
[1759100039160,0.1232797,111990.0,111980.0,1.55627175]
[1759100039752,0.14459899,111990.0,111980.0,1.55627175]
[1759100040052,0.12337546,111990.0,111980.0,1.56511499]
[1759100040361,0.1112877,111980.0,111970.0,0.5600704]
[1759100040658,0.1112877,111980.0,111970.0,1.66627925]
[1759100040853,0.1112877,111980.0,111970.0,1.67513001]
[1759100041057,0.1052877,111980.0,111970.0,1.67513001]
[1759100041358,0.03402,111980.0,111970.0,1.67513001]
[1759100042162,0.03402,111980.0,111970.0,1.41680116]
[1759100042357,0.03402,111980.0,111970.0,1.68113001]
[1759100042558,0.03402,111980.0,111970.0,1.42280116]
[1759100042762,0.03402,111980.0,111970.0,1.68113001]
[1759100042954,0.03402,111980.0,111970.0,1.68813001]
[1759100044363,0.1232877,111980.0,111970.0,1.68809001]
[1759100044761,0.1232877,111980.0,111970.0,0.58192116]
[1759100045057,0.1232877,111980.0,111970.0,1.68805001]
[1759100045456,0.03402,111980.0,111970.0,1.68805001]
[1759100045960,0.03402,111980.0,111970.0,1.68801001]
[1759100046161,0.04102,111980.0,111970.0,1.68201001]
[1759100046662,0.04202,111980.0,111970.0,0.56892116]
[1759100046860,0.04202,111980.0,111970.0,1.67501001]
[1759100048354,0.04202,111980.0,111970.0,0.82736361]
[1759100048557,0.04202,111980.0,111970.0,1.67512361]
[1759100049168,0.04202,111980.0,111970.0,0.82736361]
[1759100049365,0.04202,111980.0,111970.0,1.67504361]
[1759100049366,0.1312877,111980.0,111970.0,1.67504361]
[1759100050067,0.04202,111980.0,111970.0,1.93348606]
[1759100050761,0.04202,111980.0,111970.0,1.41660116]
[1759100050966,0.04202,111980.0,111970.0,1.93344606]
[1759100052267,0.04202,111980.0,111970.0,1.08580606]
[1759100052466,0.04202,111980.0,111970.0,1.93340606]
[1759100052658,0.04202,111980.0,111970.0,1.08580606]
[1759100052859,0.1312876,111980.0,111970.0,1.93340606]
[1759100053069,0.04202,111980.0,111970.0,0.82736361]
[1759100053366,0.04202,111980.0,111970.0,1.67496361]
[1759100053966,0.04202,111980.0,111970.0,0.82736361]
[1759100054166,0.04202,111980.0,111970.0,1.67492361]
[1759100055481,0.04202,111980.0,111970.0,1.67488361]
[1759100058582,0.04202,111980.0,111970.0,1.41644116]
[1759100058888,0.04202,111980.0,111970.0,1.67488361]
[1759100059277,0.04202,111980.0,111970.0,1.67480361]
[1759100060885,0.04202,111980.0,111970.0,1.93324606]
[1759100063286,0.02075,111980.0,111970.0,1.93324606]
[1759100065079,0.02075,111980.0,111970.0,2.33324606]
[1759100065386,0.01284576,111990.0,111980.0,0.0892676]
[1759100065579,0.01284576,111990.0,111980.0,1.22539495]
[1759100065983,0.01284576,111990.0,111980.0,1.62539495]
[1759100066579,0.01784576,111990.0,111980.0,1.62539495]
[1759100066787,0.01884576,111990.0,111980.0,1.62539495]
[1759100069884,0.01884576,111990.0,111980.0,2.47255495]
[1759100070488,0.01884576,111990.0,111980.0,2.47247495]
[1759100070685,0.01884576,111990.0,111980.0,0.8500676]
[1759100070884,0.01884576,111990.0,111980.0,2.47247495]
[1759100071592,0.01884576,111990.0,111980.0,2.2140325]
[1759100071791,0.01884576,111990.0,111980.0,1.3669525]
[1759100072092,0.01884576,111990.0,111980.0,2.2139925]
[1759100073289,0.01884576,111990.0,111980.0,2.2139125]
[1759100073490,0.04044697,111990.0,111980.0,2.47235495]
[1759100073692,0.04044697,111990.0,111980.0,2.2139125]
[1759100073890,0.04044697,111990.0,111980.0,2.47235495]
[1759100074394,0.04044502,111990.0,111980.0,2.47235495]
[1759100075001,0.01884576,111990.0,111980.0,2.47235495]
[1759100075298,0.01884576,111990.0,111980.0,1.62539495]
[1759100075595,0.01884576,111990.0,111980.0,2.2138725]
[1759100075795,0.01884576,111990.0,111980.0,2.2138325]
[1759100075995,0.01884576,111990.0,111980.0,1.3669525]
[1759100076193,0.01884576,111990.0,111980.0,2.2138325]
[1759100076400,0.01884576,111990.0,111980.0,1.3669525]
[1759100076690,0.01884576,111990.0,111980.0,2.2137925]
[1759100076890,0.01884576,111990.0,111980.0,1.3669525]
[1759100077098,0.01884576,111990.0,111980.0,2.2137925]
[1759100078698,0.01884576,111990.0,111980.0,1.3669525]
[1759100078898,0.01884576,111990.0,111980.0,2.2137525]
[1759100079395,0.01884576,111990.0,111980.0,0.9669525]
[1759100079589,0.01884576,111990.0,111980.0,1.8137125]
[1759100079590,0.78886791,111990.0,111980.0,1.8137125]
[1759100079790,0.55202351,111990.0,111980.0,1.8137125]
[1759100080098,0.81046754,111990.0,111980.0,1.8136725]
[1759100080294,0.55202509,111990.0,111980.0,1.8136725]
[1759100080599,0.15202509,111990.0,111980.0,1.8136725]
[1759100080994,0.55202509,111990.0,111980.0,1.8136725]
[1759100081193,0.55202509,111990.0,111980.0,1.8136325]
[1759100081788,0.15202509,111990.0,111980.0,1.8136325]
[1759100084087,0.15202509,111990.0,111980.0,1.8135925]
[1759100084292,0.15202509,111990.0,111980.0,0.9669525]
[1759100084491,0.15202509,111990.0,111980.0,1.8135925]
[1759100085599,0.15202509,111990.0,111980.0,1.9235925]
[1759100086101,0.15202509,111990.0,111980.0,1.4067076]
[1759100086602,0.15202509,111990.0,111980.0,1.9235925]
[1759100089003,0.41046754,111990.0,111980.0,1.9235925]
[1759100089396,0.41046754,111990.0,111980.0,1.0769525]
[1759100089598,0.41046754,111990.0,111980.0,1.4066276]
[1759100089801,0.41046754,111990.0,111980.0,1.9235125]
[1759100090492,0.41046754,111990.0,111980.0,0.81851005]
[1759100090700,0.41046754,111990.0,111980.0,1.66499005]
[1759100091100,0.41046754,111990.0,111980.0,1.66495005]
[1759100091495,0.41046754,111990.0,111980.0,1.4065076]
[1759100092106,0.41046754,111990.0,111980.0,1.66495005]
[1759100092609,0.41046754,111990.0,111980.0,0.81851005]
[1759100093092,0.15202509,111990.0,111980.0,1.66491005]
[1759100093405,0.15202509,111990.0,111980.0,1.9233525]
[1759100093800,0.06276539,111990.0,111980.0,1.9233525]
[1759100095801,0.06276539,111990.0,111980.0,2.3233525]
[1759100096001,0.01884576,111990.0,111980.0,2.3233525]
[1759100096403,0.01884576,111990.0,111980.0,2.47179495]
[1759100096597,0.00609576,111990.0,111980.0,2.47179495]
[1759100096798,0.01902576,111990.0,111980.0,2.58179495]
[1759100097201,0.01902576,111990.0,111980.0,2.47179495]
[1759100097702,0.01902576,111990.0,111980.0,2.58179495]
[1759100097901,0.01902576,111990.0,111980.0,2.3233525]
[1759100099609,0.01902576,111990.0,111980.0,0.9600676]
[1759100099795,0.01902576,111990.0,111980.0,1.9231525]
[1759100101006,0.01902576,111990.0,111980.0,1.0769525]
[1759100101305,0.01902576,111990.0,111980.0,1.9230725]
[1759100102306,0.01902576,111990.0,111980.0,1.4061876]
[1759100102508,0.01902576,111990.0,111980.0,1.9230725]
[1759100102899,0.01902576,111990.0,111980.0,2.3230725]
[1759100103206,0.01902576,111990.0,111980.0,2.58151495]
[1759100104807,0.01902576,111990.0,111980.0,0.5600676]
[1759100105115,0.13059546,111990.0,111980.0,0.9669525]
[1759100105306,0.53059546,111990.0,111980.0,1.7236849]
[1759100105506,0.55221476,111990.0,111980.0,1.7236849]
[1759100105908,0.55221476,111990.0,111980.0,1.8129525]
[1759100106206,0.55221476,111990.0,111980.0,1.8129125]
[1759100106407,0.55221476,111990.0,111980.0,0.9669525]
[1759100106613,0.55221476,111990.0,111980.0,1.8129125]
[1759100107108,0.55221476,111990.0,111980.0,0.9669525]
[1759100107309,0.55221476,111990.0,111980.0,1.8128725]
[1759100107509,0.1021977,111980.0,111970.0,0.3608]
[1759100107812,0.1245156,111970.0,111960.0,0.3608]
[1759100108011,0.1245236,111960.0,111950.0,1.20672]
[1759100108218,0.3830319,111960.0,111950.0,1.55445405]
[1759100108515,0.1245316,111950.0,111940.0,0.62308899]
[1759100108715,0.1245316,111950.0,111940.0,1.98589389]
[1759100108903,0.1235316,111950.0,111940.0,1.98589389]
[1759100109110,0.1235316,111950.0,111940.0,0.42379449]
[1759100109314,0.38197405,111950.0,111940.0,1.52815694]
[1759100109515,0.1235316,111950.0,111940.0,1.78659939]
[1759100109714,0.38197405,111950.0,111940.0,1.78659939]
[1759100109911,0.38197405,111950.0,111940.0,0.94067939]
[1759100110117,0.1235316,111950.0,111940.0,1.8128644]
[1759100110318,0.1235316,111950.0,111940.0,1.55458457]
[1759100110619,0.1195316,111950.0,111940.0,1.56362457]
[1759100111017,0.03524,111950.0,111940.0,1.62661906]
[1759100111318,0.1285316,111950.0,111940.0,1.2960195]
[1759100111507,0.5285316,111950.0,111940.0,1.55462467]
[1759100111818,0.78713667,111950.0,111940.0,1.2960196]
[1759100112013,0.78713667,111950.0,111940.0,0.4500996]
[1759100112315,0.5285316,111950.0,111940.0,1.2960196]
[1759100112719,0.5285316,111950.0,111940.0,1.55462467]
[1759100112923,0.5285316,111950.0,111940.0,1.2960196]
[1759100113116,0.5285316,111950.0,111940.0,1.55462467]
[1759100113317,0.5285316,111950.0,111940.0,0.70870467]
[1759100113516,0.5285316,111950.0,111940.0,1.55466467]
[1759100114117,0.5285316,111950.0,111940.0,1.2960596]
[1759100115632,0.5285316,111950.0,111940.0,0.4500996]
[1759100115926,0.5285316,111950.0,111940.0,0.3608]
[1759100116117,0.78713667,111950.0,111940.0,1.20672]
[1759100116315,0.78713667,111950.0,111940.0,1.2960195]
[1759100117516,0.5285316,111950.0,111940.0,1.2960195]
[1759100117821,0.5285316,111950.0,111940.0,1.55462457]
[1759100118018,0.03924,111950.0,111940.0,1.55462457]
[1759100121121,0.01693,111950.0,111940.0,1.55462457]
[1759100121629,0.01693,111950.0,111940.0,1.95462457]
[1759100121821,0.01693,111950.0,111940.0,2.01761906]
[1759100122029,0.01693,111950.0,111940.0,2.12761906]
[1759100124825,0.01693,111950.0,111940.0,1.21870457]
[1759100125026,0.01693,111950.0,111940.0,2.06462457]
[1759100126028,0.004,111950.0,111940.0,1.28169906]
[1759100126321,0.01713,111950.0,111940.0,2.12757906]
[1759100126521,0.01713,111950.0,111940.0,1.28169906]
[1759100126726,0.01713,111950.0,111940.0,2.06458457]
[1759100127129,0.01713,111950.0,111940.0,1.21870457]
[1759100127328,0.01713,111950.0,111940.0,1.8059795]
[1759100127531,0.01713,111950.0,111940.0,2.06458457]
[1759100127830,0.01713,111950.0,111940.0,1.21870457]
[1759100128031,0.78611677,111950.0,111940.0,0.3608]
[1759100128228,0.1024297,111940.0,111930.0,1.29605446]
[1759100128436,0.36109923,111940.0,111930.0,1.29605446]
[1759100128633,0.10249416,111940.0,111930.0,1.29605446]
[1759100129334,0.10349416,111940.0,111930.0,1.29605446]
[1759100129635,0.38318923,111940.0,111930.0,1.20674686]
[1759100129931,0.78318923,111940.0,111930.0,0.84590686]
[1759100130327,0.78318923,111940.0,111930.0,0.00010686]
[1759100130532,0.78318923,111940.0,111930.0,0.84594686]
[1759100130737,0.78318923,111940.0,111930.0,0.93525446]
[1759100131731,0.52458416,111940.0,111930.0,0.93525446]
[1759100132030,0.78318923,111940.0,111930.0,0.93525446]
[1759100132443,0.52458416,111940.0,111930.0,0.93525446]
[1759100133525,0.78318923,111940.0,111930.0,0.00010686]
[1759100133924,1.14398923,111940.0,111930.0,0.00010686]
[1759100134130,1.15299449,111940.0,111930.0,0.00010686]
[1759100135133,0.89438942,111940.0,111930.0,0.00010686]
[1759100135438,1.15299449,111940.0,111930.0,0.00010686]